lending/lending_fUSD_20240120
["ID","MTS","AMOUNT","RATE_DAILY","PERIOD"]
[312334352,1705787448630,-500.0,0.00034455,2]
[312334353,1705787448640,-500.0,0.00034455,2]
[312334354,1705787448650,-500.0,0.00034455,2]
[312334355,1705787448660,-500.0,0.00034455,2]
[312334356,1705787448669,-500.0,0.00034455,2]
[312334357,1705787448679,-500.0,0.00034455,2]
[312334358,1705787448689,-500.0,0.00034455,2]
[312334359,1705787448698,-500.0,0.00034455,2]
[312334360,1705787448708,-500.0,0.00034455,2]
[312334361,1705787448718,-500.0,0.00034455,2]
[312334362,1705787448729,-500.0,0.00034455,2]
[312334363,1705787448738,-500.0,0.00034455,2]
[312334364,1705787448747,-500.0,0.00034455,2]
[312334365,1705787448758,-500.0,0.00034455,2]
[312334366,1705787448768,-500.0,0.00034455,2]
[312334367,1705787448777,-500.0,0.00034455,2]
[312334368,1705787448787,-500.0,0.00034455,2]
[312334369,1705787448796,-500.0,0.00034455,2]
[312334370,1705787448805,-500.0,0.00034455,2]
[312334371,1705787448814,-500.0,0.00034455,2]
[312334372,1705787448824,-500.0,0.00034455,2]
[312334373,1705787448833,-500.0,0.00034455,2]
[312334374,1705787448842,-500.0,0.00034455,2]
[312334375,1705787448851,-500.0,0.00034455,2]
[312334376,1705787448861,-500.0,0.00034455,2]
[312334377,1705787448871,-500.0,0.00034455,2]
[312334378,1705787448880,-500.0,0.00034455,2]
[312334379,1705787448889,-500.0,0.00034455,2]
[312334380,1705787448898,-500.0,0.00034455,2]
[312334381,1705787448908,-500.0,0.00034455,2]
[312334382,1705787448917,-500.0,0.00034455,2]
[312334383,1705787448927,-500.0,0.00034455,2]
[312334384,1705787448936,-500.0,0.00034455,2]
[312334385,1705787448946,-500.0,0.00034455,2]
[312334386,1705787448955,-500.0,0.00034455,2]
[312334387,1705787448964,-500.0,0.00034455,2]
[312334388,1705787448974,-500.0,0.00034455,2]
[312334389,1705787448983,-500.0,0.00034455,2]
[312334390,1705787448993,-500.0,0.00034455,2]
[312334391,1705787449002,-500.0,0.00034455,2]
[312334392,1705787449012,-500.0,0.00034455,2]
[312334393,1705787449022,-500.0,0.00034455,2]
[312334394,1705787449031,-500.0,0.00034455,2]
[312334395,1705787449041,-500.0,0.00034455,2]
[312334396,1705787449050,-500.0,0.00034455,2]
[312334397,1705787449059,-500.0,0.00034455,2]
[312334398,1705787449070,-500.0,0.00034455,2]
[312334399,1705787449079,-500.0,0.00034455,2]
[312334400,1705787449089,-500.0,0.00034455,2]
[312334401,1705787449098,-500.0,0.00034455,2]
[312334402,1705787449108,-500.0,0.00034455,2]
[312334403,1705787449119,-500.0,0.00034455,2]
[312334404,1705787449129,-300.0,0.00034455,2]
[312334405,1705787449138,-500.0,0.00034455,2]
[312334406,1705787449149,-500.0,0.00034455,2]
[312334407,1705787449159,-500.0,0.00034455,2]
[312334408,1705787449170,-500.0,0.00034455,2]
[312334409,1705787449180,-500.0,0.00034455,2]
[312334410,1705787449190,-500.0,0.00034455,2]
[312334411,1705787449200,-500.0,0.00034455,2]
[312334412,1705787449212,-500.0,0.00034455,2]
[312334413,1705787449224,-500.0,0.00034455,2]
[312334414,1705787449234,-500.0,0.00034455,2]
[312334415,1705787449244,-500.0,0.00034455,2]
[312334416,1705787449253,-500.0,0.00034455,2]
[312334417,1705787449263,-500.0,0.00034455,2]
[312334418,1705787449274,-500.0,0.00034455,2]
[312334419,1705787449285,-500.0,0.00034455,2]
[312334420,1705787449295,-500.0,0.00034455,2]
[312334421,1705787449306,-500.0,0.00034455,2]
[312334422,1705787449315,-500.0,0.00034455,2]
[312334423,1705787449325,-500.0,0.00034455,2]
[312334424,1705787449335,-500.0,0.00034455,2]
[312334425,1705787449345,-500.0,0.00034455,2]
[312334426,1705787449354,-500.0,0.00034455,2]
[312334427,1705787449363,-500.0,0.00034455,2]
[312334428,1705787449373,-500.0,0.00034455,2]
[312334429,1705787449382,-500.0,0.00034455,2]
[312334430,1705787449391,-500.0,0.00034455,2]
[312334431,1705787449401,-500.0,0.00034455,2]
[312334432,1705787449411,-500.0,0.00034455,2]
[312334433,1705787449422,-500.0,0.00034455,2]
[312334434,1705787449433,-500.0,0.00034455,2]
[312334435,1705787449443,-500.0,0.00034455,2]
[312334436,1705787449452,-500.0,0.00034455,2]
[312334437,1705787449462,-500.0,0.00034455,2]
[312334438,1705787449472,-500.0,0.00034455,2]
[312334439,1705787449483,-500.0,0.00034455,2]
[312334440,1705787449493,-500.0,0.00034455,2]
[312334441,1705787449506,-500.0,0.00034455,2]
[312334442,1705787449517,-500.0,0.00034455,2]
[312334443,1705787449528,-500.0,0.00034455,2]
[312334444,1705787449539,-500.0,0.00034455,2]
[312334445,1705787449549,-500.0,0.00034455,2]
[312334446,1705787449559,-500.0,0.00034455,2]
[312334447,1705787449570,-500.0,0.00034455,2]
[312334448,1705787449580,-500.0,0.00034455,2]
[312334449,1705787449590,-500.0,0.00034455,2]
[312334450,1705787449600,-500.0,0.00034455,2]
[312334451,1705787449610,-500.0,0.00034455,2]
[312334452,1705787449620,-500.0,0.00034455,2]
[312334453,1705787449631,-500.0,0.00034455,2]
[312334454,1705787449641,-500.0,0.00034455,2]
[312334455,1705787449651,-500.0,0.00034455,2]
[312334456,1705787449660,-500.0,0.00034455,2]
[312334457,1705787449670,-500.0,0.00034455,2]
[312334458,1705787449679,-500.0,0.00034455,2]
[312334459,1705787449689,-500.0,0.00034455,2]
[312334460,1705787449699,-500.0,0.00034455,2]
[312334461,1705787449710,-500.0,0.00034455,2]
[312334462,1705787449719,-500.0,0.00034455,2]
[312334463,1705787449731,-500.0,0.00034455,2]
[312334464,1705787449742,-500.0,0.00034455,2]
[312334465,1705787449751,-500.0,0.00034455,2]
[312334466,1705787449761,-500.0,0.00034455,2]
[312334467,1705787449770,-500.0,0.00034455,2]
[312334468,1705787449781,-500.0,0.00034455,2]
[312334469,1705787449792,-500.0,0.00034455,2]
[312334470,1705787449802,-500.0,0.00034455,2]
[312334471,1705787449812,-500.0,0.00034455,2]
[312334472,1705787449822,-500.0,0.00034455,2]
[312334473,1705787449832,-150.0,0.00034456,7]
[312334474,1705787449842,-150.0,0.00034456,7]
[312334475,1705787449851,-150.0,0.00034471,2]
[312334476,1705787449862,-151.0,0.00034499,7]
[312334477,1705787449873,-4425.51274453,0.000345,2]
[312334478,1705787449882,-250.0,0.000345,8]
[312334479,1705787449894,-447.855097,0.0003452,2]
[312334480,1705787449903,-170.0,0.00034521,2]
[312334481,1705787449913,-193.74997087,0.00034535,7]
[312334482,1705787449922,-150.0,0.00034566,2]
[312334483,1705787449932,-6848.86152782,0.0003465,2]
[312334484,1705787449942,-153.84,0.00034703,2]
[312334485,1705787449952,-153.27,0.00034703,2]
[312334486,1705787449962,-150.0,0.00034712,2]
[312334487,1705787449972,-150.0,0.00034719,2]
[312334488,1705787449984,-150.0,0.00034725,2]
[312334489,1705787449994,-3172.508076,0.00034794,2]
[312334490,1705787450005,-671.782645,0.00034794,2]
[312334491,1705787450016,-6640.340769,0.00034794,2]
[312334492,1705787450026,-150.0,0.00034825,2]
[312334493,1705787450036,-204.0,0.0003485,2]
[312334494,1705787450047,-203.0,0.0003485,2]
[312334495,1705787450058,-150.0,0.00034859,2]
[312334496,1705787450068,-150.0,0.00034895,2]
[312334497,1705787450077,-150.0,0.00034898,2]
[312334498,1705787450087,-150.0,0.00034898,2]
[312334499,1705787450097,-8961.38344061,0.000349,4]
[312334500,1705787450106,-1855.28792762,0.000349,2]
[312334501,1705787450115,-1855.28792755,0.000349,2]
[312334502,1705787450125,-1855.28792755,0.000349,2]
[312334503,1705787450135,-1855.28792755,0.000349,2]
[312334504,1705787450145,-1855.28792755,0.000349,2]
[312334505,1705787450155,-1855.28792755,0.000349,2]
[312334506,1705787450165,-1855.28792755,0.000349,2]
[312334507,1705787450174,-1855.28792755,0.000349,2]
[312334508,1705787450184,-150.0,0.00034923,2]
[312334509,1705787450194,-3965.635095,0.00034931,2]
[312334510,1705787450205,-895.710194,0.00034931,2]
[312334511,1705787450215,-8300.425961,0.00034931,2]
[312334512,1705787450226,-150.0,0.00034954,2]
[312334513,1705787450236,-677.41958487,0.00034978,7]
[312334514,1705787450245,-150.0,0.0003498,2]
[312334515,1705787450255,-150.0,0.00034982,2]
[312334516,1705787450265,-150.0,0.00034999,2]
[312334517,1705787450275,-150.0,0.00034999,2]
[312334518,1705787450284,-245.75900078,0.00034999,7]
[312334519,1705787450481,-100000.0,0.00035,5]
[312334520,1705787450492,-155.0,0.00035,2]
[312334521,1705787450501,-5000.0,0.00035,2]
[312334522,1705787450512,-615.21134689,0.00035,4]
[312334523,1705787450522,-23500.47032796,0.00035,4]
[312334524,1705787450533,-448.27259389,0.00035,4]
[312334525,1705787450542,-15747.42472386,0.00035,7]
[312334526,1705787450553,-620.01315922,0.00035,4]
[312334527,1705787450563,-1000.0,0.00035,5]
[312334528,1705787450573,-1000.0,0.00035,5]
[312334529,1705787450583,-153.54,0.00035,6]
[312334530,1705787450593,-533.15506112,0.00035,14]
[312334531,1705787450603,-250.0,0.00035,8]
[312334532,1705787450613,-1000.0,0.00035,120]
[312334533,1705787450622,-150.0,0.00035021,2]
[312334534,1705787450632,-5551.889133,0.00035068,2]
[312334535,1705787450642,-1119.637742,0.00035068,2]
[312334536,1705787450652,-11620.596346,0.00035068,2]
[312334537,1705787450662,-150.0,0.0003507,2]
[312334538,1705787450672,-150.0,0.0003507,2]
[312334539,1705787450681,-150.0,0.0003507,2]
[312334540,1705787450691,-150.0,0.0003507,2]
[312334541,1705787450701,-150.0,0.0003507,2]
[312334542,1705787450711,-190.09,0.0003507,2]
[312334543,1705787450722,-150.0,0.00035127,2]
[312334544,1705787450733,-150.0,0.00035135,2]
[312334545,1705787450743,-150.0,0.0003515,2]
[312334546,1705787450752,-1111.33905629,0.00035155,7]
[312334547,1705787450764,-159.99774197,0.00035167,2]
[312334548,1705787450774,-150.0,0.00035187,2]
[312334549,1705787450783,-150.0,0.00035209,2]
[312334550,1705787450793,-300.0,0.00035217,2]
[312334551,1705787450803,-150.0,0.0003524,2]
[312334552,1705787450813,-150.0,0.0003526,2]
[312334553,1705787450823,-150.0,0.00035263,2]
[312334554,1705787450832,-150.0,0.00035278,2]
[312334555,1705787450841,-150.0,0.00035287,2]
[312334556,1705787450851,-1000.0,0.00035298,7]
[312334557,1705787450860,-1855.28792755,0.00035339,2]
[312334558,1705787450870,-6345.016153,0.00035342,2]
[312334559,1705787450879,-1567.492839,0.00035342,2]
[312334560,1705787450889,-13280.681538,0.00035342,2]
[312334561,1705787450899,-300.0,0.00035345,2]
[312334562,1705787450908,-10000.0,0.00035351,2]
[312334563,1705787450917,-150.0,0.00035355,2]
[312334564,1705787450927,-150.0,0.00035359,2]
[312334565,1705787450937,-150.0,0.00035361,2]
[312334566,1705787450946,-150.0,0.00035364,2]
[312334567,1705787450955,-150.0,0.00035376,2]
[312334568,1705787450965,-150.0,0.00035377,2]
[312334569,1705787450975,-150.0,0.00035382,2]
[312334570,1705787450985,-150.0,0.00035415,2]
[312334571,1705787450995,-150.0,0.00035423,2]
[312334572,1705787451004,-150.0,0.00035446,2]
[312334573,1705787451013,-150.0,0.00035449,2]
[312334574,1705787451023,-300.0,0.00035452,2]
[312334575,1705787451032,-150.0,0.00035453,2]
[312334576,1705787451041,-300.0,0.00035456,2]
[312334577,1705787451051,-1000.0,0.00035457,7]
[312334578,1705787451060,-150.0,0.00035465,2]
[312334579,1705787451069,-150.0,0.00035468,2]
[312334580,1705787451078,-150.0,0.0003547,2]
[312334581,1705787451088,-390.22628193,0.00035475,2]
[312334582,1705787451097,-150.0,0.00035477,2]
[312334583,1705787451106,-1000.0,0.00035478,7]
[312334584,1705787451116,-250.0,0.000355,9]
[312334585,1705787451125,-150.0,0.00035508,2]
[312334586,1705787451134,-150.0,0.00035518,2]
[312334587,1705787451144,-150.0,0.00035532,2]
[312334588,1705787451153,-150.0,0.00035536,2]
[312334589,1705787451162,-150.0,0.00035546,2]
[312334590,1705787451171,-150.0,0.00035548,2]
[312334591,1705787451180,-150.0,0.0003556,2]
[312334592,1705787451190,-156.40939445,0.00035563,2]
[312334593,1705787451199,-1000.0,0.00035564,7]
[312334594,1705787451209,-150.0,0.00035566,2]
[312334595,1705787451218,-150.0,0.00035576,2]
[312334596,1705787451228,-150.0,0.00035578,2]
[312334597,1705787451237,-1000.0,0.00035579,7]
[312334598,1705787451246,-300.0,0.00035587,2]
[312334599,1705787451255,-150.0,0.0003559,2]
[312334600,1705787451265,-1500.0,0.0003559,2]
[312334601,1705787451274,-300.0,0.00035593,2]
[312334602,1705787451284,-226.3,0.000356,2]
[312334603,1705787451293,-150.0,0.00035603,2]
[312334604,1705787451302,-305.43648328,0.00035605,2]
[312334605,1705787451312,-150.0,0.00035608,2]
[312334606,1705787451321,-971.99705032,0.0003561,5]
[312334607,1705787451331,-2149.88,0.00035616,2]
[312334608,1705787451340,-153.84,0.00035616,2]
[312334609,1705787451350,-150.0,0.00035626,2]
[312334610,1705787451360,-150.0,0.00035636,2]
[312334611,1705787451369,-150.0,0.00035654,2]
[312334612,1705787451379,-150.0,0.00035658,2]
[312334613,1705787451388,-150.0,0.0003566,2]
[312334614,1705787451398,-150.0,0.0003566,2]
[312334615,1705787451408,-150.0,0.0003566,2]
[312334616,1705787451417,-150.0,0.00035671,2]
[312334617,1705787451428,-150.0,0.00035688,2]
[312334618,1705787451438,-150.0,0.00035693,2]
[312334619,1705787451448,-150.0,0.00035694,2]
[312334620,1705787451458,-150.0,0.00035694,2]
[312334621,1705787451467,-150.0,0.00035699,2]
[312334622,1705787451477,-190.53,0.000357,2]
[312334623,1705787451487,-337.15,0.000357,7]
[312334624,1705787451497,-680.37,0.000357,7]
[312334625,1705787451507,-1658.18,0.000357,7]
[312334626,1705787451517,-197.46375654,0.00035701,2]
[312334627,1705787451527,-1500.0,0.00035703,2]
[312334628,1705787451537,-150.0,0.00035706,2]
[312334629,1705787451547,-150.0,0.00035709,2]
[312334630,1705787451556,-150.0,0.0003572,2]
[312334631,1705787451567,-150.0,0.00035723,2]
[312334632,1705787451576,-150.0,0.00035734,2]
[312334633,1705787451586,-1230.57568454,0.00035749,2]
[312334634,1705787451596,-150.0,0.0003575,2]
[312334635,1705787451606,-14455.68821814,0.00035754,4]
[312334636,1705787451616,-150.0,0.00035759,2]
[312334637,1705787451627,-150.0,0.00035772,2]
[312334638,1705787451637,-150.0,0.00035779,2]
[312334639,1705787451647,-150.0,0.00035781,2]
[312334640,1705787451657,-150.0,0.00035782,2]
[312334641,1705787451666,-736.55885826,0.00035783,4]
[312334642,1705787451676,-300.0,0.00035783,2]
[312334643,1705787451686,-183.53802334,0.00035798,2]
[312334644,1705787451695,-229.58564176,0.00035799,2]
[312334645,1705787451705,-513.4903932,0.000358,3]
[312334646,1705787451715,-150.0,0.000358,9]
[312334647,1705787451726,-150.0,0.00035821,2]
[312334648,1705787451736,-150.0,0.00035824,2]
[312334649,1705787451746,-150.0,0.00035824,2]
[312334650,1705787451755,-1500.0,0.00035826,2]
[312334651,1705787451764,-150.0,0.00035831,2]
[312334652,1705787451774,-150.0,0.00035836,2]
[312334653,1705787451785,-1500.0,0.0003584,2]
[312334654,1705787451795,-150.0,0.00035842,2]
[312334655,1705787451804,-150.0,0.00035862,2]
[312334656,1705787451814,-150.0,0.00035867,2]
[312334657,1705787451823,-150.0,0.00035869,2]
[312334658,1705787451833,-150.0,0.00035869,2]
[312334659,1705787451842,-150.0,0.00035869,2]
[312334660,1705787451852,-169.00136356,0.0003587,2]
[312334661,1705787451861,-150.0,0.00035881,2]
[312334662,1705787451871,-300.0,0.00035881,2]
[312334663,1705787451881,-300.0,0.00035891,2]
[312334664,1705787451891,-150.0,0.00035899,2]
[312334665,1705787451901,-150.0,0.000359,8]
[312334666,1705787451911,-500.0,0.000359,2]
[312334667,1705787451921,-835.0,0.000359,2]
[312334668,1705787451930,-150.0,0.00035924,2]
[312334669,1705787451940,-150.0,0.00035927,2]
[312334670,1705787451951,-150.0,0.00035939,2]
[312334671,1705787451960,-150.0,0.00035939,2]
[312334672,1705787451970,-150.0,0.00035941,2]
[312334673,1705787451980,-150.0,0.00035951,2]
[312334674,1705787451990,-30515.0175652,0.00035975,2]
[312334675,1705787452000,-2800.0483537,0.00035975,2]
[312334676,1705787452010,-1138.0899706,0.00035978,5]
[312334677,1705787452021,-1375.18807836,0.00035978,4]
[312334678,1705787452031,-8030.9887181,0.00035978,4]
[312334679,1705787452040,-1475.41857169,0.00035978,4]
[312334680,1705787452050,-380.09202361,0.00035978,4]
[312334681,1705787452059,-155.0,0.00035978,2]
[312334682,1705787452069,-819.8312848,0.00035978,4]
[312334683,1705787452079,-3419.5060009,0.00035978,5]
[312334684,1705787452088,-838.0844007,0.00035978,2]
[312334685,1705787452098,-5839.85633545,0.00035978,4]
[312334686,1705787452108,-5000.0,0.00035978,15]
[312334687,1705787452117,-200.0,0.00035978,2]
[312334688,1705787452127,-200.0,0.00035978,2]
[312334689,1705787452136,-500.0,0.00035978,2]
[312334690,1705787452146,-4420.04090332,0.00035978,2]
[312334691,1705787452157,-1229.99991788,0.00035978,2]
[312334692,1705787452167,-1000.0,0.00035978,6]
[312334693,1705787452176,-1000.0,0.00035978,6]
[312334694,1705787452186,-155.4439,0.00035994,2]
[312334695,1705787452196,-317.2054455,0.00035997,4]
[312334696,1705787452206,-341.83071978,0.00035997,4]
[312334697,1705787452215,-7736.37,0.00035999,2]
[312334698,1705787452225,-7736.37,0.00035999,2]
[312334699,1705787452234,-7736.37,0.00035999,2]
[312334700,1705787452244,-7736.37,0.00035999,2]
[312334701,1705787452255,-7736.37,0.00035999,2]
[312334702,1705787452264,-3802.94812187,0.00035999,2]
[312334703,1705787452287,-3004.81095367,0.00035999,2]
[312334704,1705787452304,-928.61092446,0.00035999,2]
[312334705,1705787452313,-2789.18907554,0.00035999,2]
[312334706,1705787452580,-800.91752331,0.00022798,2]
[312334707,1705787452591,-33.68968235,0.00022875,2]
[312334708,1705787452610,-778.52902437,0.00022875,2]
[312334709,1705787452621,-151.0,0.0003,7]
[312334710,1705787452631,-418.59,0.00031235,2]
[312334711,1705787452640,-744.78097563,0.0003179,10]
[312334712,1705787452653,-1322.4626,0.0003179,10]
[312334713,1705787452664,-24.43642437,0.0003179,10]
[312334714,1705787452674,-151.0,0.00032,7]
[312334715,1705787452684,-4947.18092446,0.00035999,2]
[312334716,1705787452694,-7736.39,0.00035999,2]
[312334717,1705787452704,-7736.39,0.00035999,2]
[312334718,1705787452714,-31430.27252143,0.00036,6]
[312334719,1705787452726,-5236.62192704,0.00036,6]
[312334720,1705787452738,-1943.66,0.00036,6]
[312334721,1705787452751,-15521.8985662,0.00036,6]
[312334722,1705787452763,-45867.54698533,0.00036,6]
[312334723,1705787452774,-168201.99028559,0.00036,7]
[312334724,1705787452783,-1500.0,0.00036,2]
[312334725,1705787452878,-6345.016153,0.00036,2]
[312334726,1705787452888,-204.0,0.00036,2]
[312334727,1705787452898,-203.0,0.00036,2]
[312334728,1705787452910,-1000.0,0.00036,6]
[312334729,1705787452920,-13280.681538,0.00036,2]
[312334730,1705787452930,-300.0,0.00036,10]
[312334731,1705787452939,-151.0,0.00036,7]
[312334732,1705787452950,-151.0,0.00036,7]
[312334733,1705787452960,-294.316742,0.00036,7]
[312334734,1705787452970,-151.0,0.00036,7]
[312334735,1705787452980,-151.0,0.00036,7]
[312334736,1705787452989,-151.0,0.00036,7]
[312334737,1705787453000,-151.0,0.00036,7]
[312334738,1705787453011,-227.803753,0.00036,7]
[312334739,1705787453021,-227.803753,0.00036,7]
[312334740,1705787453031,-1221.405118,0.00036,7]
[312334741,1705787453041,-1221.405118,0.00036,7]
[312334742,1705787453051,-151.0,0.00036,7]
[312334743,1705787453060,-151.0,0.00036,7]
[312334744,1705787453069,-207.0,0.00036,7]
[312334745,1705787453078,-509.964926,0.00036,7]
[312334746,1705787453096,-509.964926,0.00036,7]
[312334747,1705787453117,-972.439147,0.00036,7]
[312334748,1705787453126,-972.439147,0.00036,7]
[312334749,1705787453136,-276.779075,0.00036,8]
[312334750,1705787453145,-500.0,0.00036,2]
[312334751,1705787453155,-250.0,0.00036,10]
[312334752,1705787453165,-281.023614,0.00036,7]
[312334753,1705787453176,-281.023614,0.00036,7]
[312334754,1705787453185,-344.0,0.00036,2]
[312334755,1705787453194,-574.2193,0.00036,2]
[312334756,1705787453207,-151.0,0.00036,7]
[312334757,1705787453216,-151.0,0.00036,7]
[312334758,1705787453225,-192.62736564,0.000361,4]
[312334759,1705787453235,-840.71,0.000361,3]
[312334760,1705787453244,-840.71,0.000361,3]
[312334761,1705787453255,-840.71,0.000361,3]
[312334762,1705787453266,-840.71,0.000361,3]
[312334763,1705787453278,-840.71,0.000361,3]
[312334764,1705787453289,-840.71,0.000361,3]
[312334765,1705787453299,-840.71,0.000361,3]
[312334766,1705787453309,-840.71,0.000361,3]
[312334767,1705787453318,-840.71,0.000361,3]
[312334768,1705787453328,-840.71,0.000361,3]
[312334769,1705787453337,-840.71,0.000361,3]
[312334770,1705787453348,-840.71,0.000361,3]
[312334771,1705787453357,-840.71,0.000361,3]
[312334772,1705787453366,-840.71,0.000361,3]
[312334773,1705787453375,-840.71,0.000361,3]
[312334774,1705787453385,-840.71,0.000361,3]
[312334775,1705787453395,-840.71,0.000361,3]
[312334776,1705787453404,-840.71,0.000361,3]
[312334777,1705787453414,-840.71,0.000361,3]
[312334778,1705787453423,-840.71,0.000361,3]
[312334779,1705787453435,-1000.0,0.000361,2]
[312334780,1705787453444,-150.63655993,0.00036337,2]
[312334781,1705787453454,-1138.0,0.00036368,2]
[312334782,1705787453464,-178.0,0.00036396,2]
[312334783,1705787453475,-194.0,0.00036396,2]
[312334784,1705787453484,-178.0,0.00036396,2]
[312334785,1705787453494,-150.66,0.00036422,2]
[312334786,1705787453504,-150.0,0.00036482,2]
[312334787,1705787453513,-190.53,0.000365,2]
[312334788,1705787453523,-337.15,0.000365,7]
[312334789,1705787453533,-680.37,0.000365,7]
[312334790,1705787453546,-1658.18,0.000365,7]
[312334791,1705787453555,-1111.33905629,0.00036527,9]
[312334792,1705787453565,-153.84,0.0003653,2]
[312334793,1705787453575,-193.74997087,0.00036598,8]
[312334794,1705787453585,-479.7,0.00036613,15]
[312334795,1705787453597,-2553.1772417,0.00036673,2]
[312334796,1705787453607,-162875.81248523,0.00036698,15]
[312334797,1705787454706,-1863.38183947,0.00036698,15]
[312334798,1705787454746,-160.83536735,0.000319,2]
[312334799,1705787454756,-521.48812016,0.00036698,15]
[312334806,1705788176395,331.95,0.00019427,2]
[312334807,1705788188726,305.810498,0.00035904,30]
[312334808,1705788383872,-5048.33428235,0.00019728,2]
[312334809,1705788543914,204.0,0.00019395,2]
[312334810,1705788603217,315.35,0.00018706,2]
[312334832,1705788631583,-163.03627424,0.000198,2]
[312334833,1705788631592,-1598.39707285,0.000199,3]
[312334834,1705788631603,-267.96954897,0.000199,3]
[312334838,1705788631637,-1104.08858802,0.000199,3]
[312334840,1705788631646,-295.91141198,0.0002,2]
[312334842,1705788631657,-933.66427472,0.0002,2]
[312334844,1705788631667,-400.0,0.0002,2]
[312334846,1705788631677,-1353.3043,0.0002049,2]
[312334848,1705788631686,-198.86,0.00020629,10]
[312334850,1705788631695,-176.13,0.00020635,2]
[312334852,1705788631705,-2705.0,0.00020638,2]
[312334853,1705788631714,-1000.0,0.00020652,2]
[312334855,1705788631723,-300.0,0.00020858,2]
[312334857,1705788631732,-150.0,0.00020858,2]
[312334859,1705788631741,-2000.0,0.00020859,2]
[312334860,1705788631751,-250.0,0.0002087,2]
[312334862,1705788631760,-9999.99,0.0002087,2]
[312334864,1705788631771,-9999.99,0.0002087,2]
[312334865,1705788631782,-164.58,0.00020879,2]
[312334866,1705788631792,-500.0,0.00020893,2]
[312334867,1705788631801,-499.99,0.00020893,2]
[312334869,1705788631810,-700.51,0.00020893,2]
[312334870,1705788631820,-1656.47,0.00020893,2]
[312334871,1705788631830,-150.99,0.00020893,2]
[312334872,1705788631839,-162.2,0.00020907,2]
[312334873,1705788631848,-315.35,0.0002097,2]
[312334874,1705788631858,-575.17930862,0.00021,2]
[312334875,1705788631870,-200.0,0.00021063,2]
[312334876,1705788631880,-166.96,0.00021083,2]
[312334877,1705788631889,-467.25,0.000211,2]
[312334878,1705788631898,-222.52,0.00021104,2]
[312334879,1705788631907,-150.7,0.00021224,2]
[312334880,1705788631916,-200.0,0.00021281,2]
[312334881,1705788631925,-150.7,0.00021282,2]
[312334882,1705788631934,-164.58,0.00021297,2]
[312334883,1705788631943,-750.0,0.000213,2]
[312334884,1705788631953,-168.27,0.00021307,2]
[312334885,1705788631962,-204.0,0.00021328,4]
[312334886,1705788631971,-4454.89,0.00021331,2]
[312334887,1705788631980,-150.7,0.0002134,2]
[312334888,1705788631989,-163.03627423,0.0002135,2]
[312334889,1705788631999,-150.7,0.00021399,2]
[312334891,1705788632008,-150.7,0.00021457,2]
[312334893,1705788632017,-150.7,0.00021515,2]
[312334895,1705788632026,-13916.699,0.00021524,2]
[312334897,1705788632035,-150.7,0.00021573,2]
[312334899,1705788632044,-150.7,0.00021632,2]